{"text_format":"3","workbook":"xlsx","n_sheets":2,"sheets":["ЗЭ РОШ 4-11 ","ЗЭ РОШ по школам"],"not_rendered":{"defined_names":2},"read":"whole","date_system":"1900"}

{"sheet":"ЗЭ РОШ 4-11 ","index":0,"n_rows":51,"n_cols":15,"rows_kept":51,"merged":[[0,0,0,14]]}
["Аналитика ЗЭ РОШ 2020-21 учебный год (4-11 кл.)"]
["№","Район","История Татарстана и татарского народа","\"Родная (татарская) литература для учащихся-татар школ с русским языком обучения\"","\"Родной (татарский) язык для учащихся-татар школ с русским язком обучения\"","\"Родная (татарская) литература для учащихся школ с татарским языком обучения\" ","\"Родной (татарский) язык для учащихся школ с татарским языком обучения\"","\"Татарский язык для русскоязычных учащихся школ с русским языком обучения\"","Арабский язык","Турецкий язык","Родные языки","Русская литература для национальных школ","Русский язык для национальных школ","Геология","Общее кол-во призеров и победителей по МО"]
[1,"Авиастроительный-Ново-Савиновский",null,6,5,3,6,3,null,14,null,3,7,7,{"$f":"SUM(C3:N3)","v":54}]
[2,"Агрызский",null,null,2,5,4,1,null,null,4,1,1,1,{"$f":"SUM(C4:N4)","v":19}]
[3,"Азнакаевский",null,2,3,2,null,2,{"$nulls":3},1,1,null,11]
[4,"Аксубаевский",null,2,1,{"$nulls":5},3,1,null,1,8]
[5,"Актанышский",8,null,null,7,20,{"$nulls":3},2,11,12,2,62]
[6,"Алексеевский",null,1,3,{"$nulls":8},1,5]
[7,"Алькеевский",null,null,3,1,null,2,{"$nulls":6},6]
[8,"Альметьевский",null,6,4,2,1,null,null,3,null,3,1,4,24]
[9,"Апастовский",null,null,2,{"$nulls":6},1,0,null,3]
[10,"Арский",1,10,16,6,7,8,1,null,null,8,5,2,64]
[11,"Атнинский",null,1,{"$nulls":10},1]
[12,"Бавлинского",null,5,{"$nulls":7},1,0,null,6]
[13,"Балтасинский",1,5,6,3,4,4,null,null,5,1,1,null,30]
[14,"Бугульминский"," ",null,1,1,1,2,null,3,5,5,4,2,24]
[15,"Буинский",null,2,2,null,1,2,null,null,2,1,3,null,13]
[16,"Вахитовский-Приволжский",1,1,8,null,3,10,1,1,null,1,1,11,38]
[17,"Верхнеуслонский",1,3,4,null,null,1,{"$nulls":6},9]
[18,"Высокогорский",null,1,7,2,3,1,{"$nulls":3},0,0,null,14]
[19,"Дрожжановский",{"$nulls":8},13,1,1,null,15]
[20,"Елабужский",null,1,1,2,3,1,{"$nulls":4},1,1,10]
[21,"Заинский",null,1,null,5,2,{"$nulls":4},1,0,1,10]
[22,"Зеленодольский",1,null,3,null,1,{"$nulls":4},1,null,1,7]
[23,"Кайбицкий",null,3,3,null,1,1,{"$nulls":6},8]
[24,"Камско-Устьинский",null,1,null,1,{"$nulls":5},1,null,null,3]
[25,"Кировский-Московский",3,null,4,6,7,4,7,32,null,12,23,1,99]
[26,"Кукморский",1,5,8,null,6,5,null,null,2,4,null,1,32]
[27,"Лаишевский",null,1,2,1,3,{"$nulls":4},1,null,null,8]
[28,"Лениногорский",1,null,9,1,{"$nulls":5},2,1,2,16]
[29,"Мамадышский",null,3,9,5,8,12,null,null,1,null,null,2,40]
[30,"Менделеевский",{"$nulls":8},1,null,0,null,1]
[31,"Мензелинский",{"$nulls":3},1,1,{"$nulls":3},1,1,null,null,4]
[32,"Муслюмовский",null,2,5,2,null,4,{"$nulls":3},2,2,3,20]
[33,"Набережные Челны",6,5,11,1,3,11,null,3,null,0,2,8,50]
[34,"Нижнекамский",null,2,null,1,null,1,1,4,3,1,2,7,22]
[35,"Новошешминский",null,null,1,3,{"$nulls":5},1,null,null,5]
[36,"Нурлатский",null,7,4,1,1,1,{"$nulls":3},4,2,3,23]
[37,"Пестречинский",null,1,2,null,null,1,{"$nulls":3},3,5,null,12]
[38,"Рыбно-Слободской",null,1,null,1,3,3,{"$nulls":5},1,9]
[39,"Сабинский",null,9,7,6,9,5,{"$nulls":3},4,4,2,46]
[40,"Сармановский",3,1,1,null,null,1,1,{"$nulls":4},1,8]
[41,"Советский",2,14,17,3,5,4,1,3,null,2,6,7,64]
[42,"Спасский",{"$nulls":10}," ",null,0]
[43,"Тетюшский",1,null,1,1,{"$nulls":4},3,1,null,1,8]
[44,"Тукаевский",{"$nulls":4},1,1,{"$nulls":3},1,1,1,5]
[45,"Тюлячинского",null,1,5,3,4,{"$nulls":4},1,null,null,14]
[46,"Черемшанский",{"$nulls":9},3,2,null,5]
[47,"Чистопольский",{"$nulls":4},1,null,null,1,null,1,2,1,6]
[48,"Ютазинский",null,null,2,2,1,null,1,null,null,2,2,1,11]
[null,"Итого",{"$f":"SUM(C3:C50)","v":30},{"$f":"SUM(D3:D50)","v":103},162,78,110,91,13,64,45,88,92,76]

{"sheet":"ЗЭ РОШ по школам","index":1,"n_rows":337,"n_cols":20,"rows_kept":337,"merged":[[0,0,0,19]]}
[" Победители и призеры ЗЭ РОШ 2020-21 учебный год (4-11 классы) По школам (с edu.tatar)"]
[1,"Муниципалитет","Полное наименование ОУ (по Уставу)","Арабский язык","Турецкий язык","Родной (татарский) язык для учащихся школ с татарским языком обучения","Родная (татарская) литература для учащихся школ с татарским языком обучения","Родной (татарский) язык для учащихся-татар школ с русским языком обучения","Родная (татарская) литература для учащихся-татар школ с русским языком обучения","Татарский язык для русскоязычных учащихся школ с русским языком обучения","Русский язык в национальной школе","Литература в национальной школе","История Татарстана и татарского народа","Марийский язык и литература","Мордовский (мокша) язык и литература","Мордовский (эрзя) язык и литература","Удмуртский язык и литература","Чувашский язык и литература","Геология","Общее кол-во призеров и победителей"]
[1,"Авиастроительный"," МБОУ \"Гимназия №10\" Авиастроительного района г.Казани",null,null,1,1," ",{"$nulls":11},{"$f":"SUM(D3:S3)","v":2}]
[2,"Авиастроительный","МАОУ \"Гимназия №37\" Авиастроительного района г.Казани",{"$nulls":4},2,null,1,{"$nulls":9},{"$f":"SUM(D4:S4)","v":3}]
[3,"Авиастроительный","МБОУ \"Лицей №26 им. М.Джалиля\" Авиастроительного района г. Казани ",{"$nulls":4},2,2,1,1,1,{"$nulls":7},7]
[4,"Авиастроительный","МБОУ \"Средняя общеобразовательная школа №112\" Авиастроительного района г.Казани",null,1,{"$nulls":14},1]
[5,"Авиастроительный","МБОУ \"Средняя общеобразовательная школа №54 с углубленным изучением отдельных предметов\" Авиастроительного района г.Казани",{"$nulls":15},2,2]
[6,"Авиастроительный","МБОУ \"Средняя общеобразовательная школа с углубленным изучением отдельных предметов №62\" Авиастроительного района г.Казани",{"$nulls":5},1,1,{"$nulls":9},2]
[7,"Авиастроительный","МБОУ «Гимназия №5»  Авиастроительного района г.Казани",null,null,1,{"$nulls":13},1]
[8,"Агрызский","МБОУ Бимская средняя общеобразовательная школа Агрызского муниципального района Республики Татарстан",{"$nulls":10},2,{"$nulls":5},2]
[9,"Агрызский","МБОУ Исенбаевская средняя общеобразовательная школа Агрызского муниципального района Республики Татарстан.",null,null,3,3,{"$nulls":4},1,{"$nulls":7},7]
[10,"Агрызский","МБОУ Кадыбашская средняя общеобразовательная школа Агрызского муниципального района Республики Татарстан",null,null,1,2,{"$nulls":12},3]
[11,"Агрызский","МБОУ Кучуковская  средняя общеобразовательная школа Агрызского муниципального района Республики Татарстан",{"$nulls":4},1,{"$nulls":11},1]
[12,"Агрызский","МБОУ Сарсак-Омгинский лицей Агрызского муниципального района Республики Татарстан",{"$nulls":13},2,null,null,2]
[13,"Агрызский","МБОУ средняя основная общеобразовательная школа №3 имени Тази Гиззата  г.Агрыз Агрызского муниципального района Республики Татарстан",{"$nulls":15},1,1]
[14,"Агрызский","МБОУ Терсинская средняя общеобразовательная школа Агрызского муниципального района Республики Татарстан",{"$nulls":4},1,null,1,1,{"$nulls":8},3]
[15,"Азнакаевский","МБОУ \"Средняя общеобразовательная школа №5 с углубленным изучением английского языка\" города Азнакаево Азнакаевского муниципального района Республики Татарстан",{"$nulls":5},1,1,{"$nulls":9},2]
[16,"Азнакаевский","МБОУ \"Средняя общеобразовательная школа №7 города Азнакаево\" Азнакаевского муниципального района Республики Татарстан",{"$nulls":6},1,{"$nulls":9},1]
[17,"Азнакаевский","МБОУ «Средняя общеобразовательная школа села Урманаево» Азнакаевского муниципального района Республики Татарстан ",{"$nulls":3},2,{"$nulls":12},2]
[18,"Азнакаевский ","МБОУ \"Лицей № 4 города Азнакаево\" Азнакаевского муниципального района Республики Татарстан",{"$nulls":4},1,{"$nulls":11},1]
[19,"Азнакаевский ","МБОУ \"Средняя общеобразовательная школа №9 города Азнакаево\"Азнакаевского муниципального района Республики Татарстан",{"$nulls":4},1,1,{"$nulls":10},2]
[20,"Азнакаевский ","МБОУ \"Средняя общеобразовательная школа села Тумутук\" Азнакаевского муниципального района Республики Татарстан",{"$nulls":4},1,{"$nulls":11},1]
[21,"Азнакаевский ","МБОУ \"Средняя общеобразовательная школа села Чалпы\" Азнакаевского муниципального района Республики Татарстан",{"$nulls":8},1,{"$nulls":7},1]
[22,"Азнакаевский ","МБОУ «Гимназия города Азнакаево» Азнакаевского муниципального района Республики Татарстан ",{"$nulls":7},1,{"$nulls":8},1]
[23,"Аксубаевский","МБОУ \"Аксубаевская средняя общеобразовательная школа №3\" Аксубаевского муниципального района Республики Татарстан",{"$nulls":15},1,1]
[24,"Аксубаевский","МБОУ \"Старомокшинская  средняя общеобразовательная школа им. В.Ф.Тарасова\" Аксубаевского муниципального района Республики Татарстан",{"$nulls":4},1,2,{"$nulls":10},3]
[25,"Аксубаевский","МБОУ \"Старосаврушская основная общеобразовательная школа\" Аксубаевского муниципального района Республики Татарстан",{"$nulls":14},1,null,1]
[26,"Аксубаевский","МБОУ \"Староузеевская средняя общеобразовательная школа\" Аксубаевского муниципального района Республики Татарстан",{"$nulls":14},1,null,1]
[27,"Аксубаевский","МБОУ «Староильдеряковская средняя общеобразовательная школа» Аксубаевского муниципального района Республики Татарстан",{"$nulls":14},1,null,1]
[28,"Аксубаевский","МБОУ «Чувенорускинская основная общеобразовательная школа» Аксубаевского муниципального района Республики Татарстан",{"$nulls":8},1,{"$nulls":7},1]
[29,"Актанышский","ГАОУ \"Гуманитарная гимназия-интернат для одаренных детей\" Республики Татарстан",null,null,12,4,null," ",null,8,5,3,{"$nulls":5},1,33]
[30,"Актанышский","МБОУ \"Актанышская средняя общеобразовательная школа №1\" Актанышского муниципального района Республики Татарстан",{"$nulls":3},1,{"$nulls":4},2,1,null,null," ",null,null,1,5]
[31,"Актанышский","МБОУ \"Актанышская средняя общеобразовательная школа №2 с углубленным изучением отдельных предметов\" Актанышского муниципального района Республики Татарстан",null,null,5,1,{"$nulls":3},2,3,1,{"$nulls":6},12]
[32,"Актанышский","МБОУ \"Мари-Суксинская основная общеобразовательная школа\" Актанышского муниципального района Республики Татарстан",{"$nulls":10},2,{"$nulls":5},2]
[33,"Актанышский","МБОУ \"Поисевская  средняя общеобразовательная школа\" Актанышского муниципального района Республики Татарстан",null,null,3,1,{"$nulls":4},1,{"$nulls":7},5]
[34,"Актанышский","МБОУ «Кировская средняя общеобразовательная школа» Актанышского муниципального района Республики Татарстан",{"$nulls":7},2,null,3,{"$nulls":6},5]
[35,"Алексеевский","МБОУ \"Алексеевская средняя общеобразовательная школа №2 имени Героя Советского Союза Ивана Егоровича Кочнева Алексеевского муниципального района Республики Татарстан\"",{"$nulls":4},2,{"$nulls":10},1,3]
[36,"Алексеевский","МБОУ Алексеевская средняя общеобразовательная школа №3 им. Г.С. Боровикова Алексеевского муниципального района Республики Татарстан",{"$nulls":3}," ",1,1,{"$nulls":10},2]
[37,"Алькеевский ","МБОУ  \"Чувашско-Бродская средняя общеобразовательная школа\" Алькеевского муниципального района Республики Татарстан",{"$nulls":4},1,{"$nulls":11},1]
[38,"Алькеевский ","МБОУ \"Юхмачинская средняя общеобразовательная школа\" Алькеевского муниципального района Республики Татарстан",{"$nulls":4},2,null,1,{"$nulls":9},3]
[39,"Алькеевский  ","МБОУ \"Базарно-Матакская средняя общеобразовательная школа\" Алькеевского муниципального района Республики Татарстан",{"$nulls":6},1,{"$nulls":9},1]
[40,"Алькеевский  ","МБОУ Алпаровская средняя общеобразовательная школа Алькеевского муниципального района Республики Татарстан",{"$nulls":3},1,{"$nulls":12},1]
[41,"Альметьевский","МАОУ \"Лицей №2\" г. Альметьевска Республики Татарстан",{"$nulls":15},3,3]
[42,"Альметьевский","МАОУ \"Лицей-интернат №1\" г.Альметьевска Республики Татарстан",null,3,null,null,1,{"$nulls":11},4]
[43,"Альметьевский","МБОУ \"Нижнемактаминская средняя общеобразовательная школа №1\" Альметьевского муниципального района  Республики Татарстан",{"$nulls":4}," ",3,{"$nulls":10},3]
[44,"Альметьевский","МБОУ \"Нижнемактаминская средняя общеобразовательная школа №2\" Альметьевского муниципального района Республики Татарстан",{"$nulls":4},2,3,{"$nulls":10},5]
[45,"Альметьевский","МБОУ \"Средняя общеобразовательная школа №1 им. М.К.Тагирова\" г.Альметьевска Республики Татарстан\"",{"$nulls":4},1,{"$nulls":11},1]
[46,"Альметьевский","МБОУ \"Средняя общеобразовательная школа №25 им.70-летия нефти Татарстана\" г.Альметьевска Республики Татарстан",{"$nulls":15},1,1]
[47,"Альметьевский","МБОУ «Гимназия №1 им. Р.Фахретдина» г.Альметьевска Республики Татарстан",null,null,1,2,{"$nulls":3},1,3,{"$nulls":7},7]
[48,"Апастовский ","МБОУ \"Азбабинская средняя общеобразовательная школа\" Апастовского муниципального района Республики Татарстан",{"$nulls":4},1,{"$nulls":11},1]
[49,"Апастовский ","МБОУ \"Большекокузская средняя общеобразовательная школа\" Апастовского муниципального района Републики Татарстан",{"$nulls":4},1,{"$nulls":3},1,{"$nulls":7},2]
[50,"Арский","МБОУ \"Арская средняя общеобразовательная школа №1 им.В.Ф.Ежкова с углубленным изучением отдельных предметов\" Арского муниципального района Республики Татарстан",{"$nulls":4},1,null,3,{"$nulls":9},4]
[51,"Арский","МБОУ \"Арская средняя общеобразовательная школа №6\" Арского муниципального района Республики Татарстан",{"$nulls":4},5,6,1,{"$nulls":8},1,13]
[52,"Арский","МБОУ \"Ашитбашская средняя общеобразовательная школа имени Г.Тукая\"  Арского муниципального района Республики Татарстан",null,null,1,2,{"$nulls":4},1,{"$nulls":7},4]
[53,"Арский","МБОУ \"Наласинская  средняя общеобразовательная школа\" Арского муниципального района Республики Татарстан",{"$nulls":3},1,{"$nulls":4},2,{"$nulls":7},3]
[54,"Арский","МБОУ \"Нижнеметескинская средняя общеобразовательная школа\" Арского муниципального района Республики Татарстан",{"$nulls":7},1,1,{"$nulls":7},2]
[55,"Арский","МБОУ \"Новокинерская средняя общеобразовательная школа\" Арского муниципального района Республики Татарстан",{"$nulls":3},1,{"$nulls":4},1,{"$nulls":7},2]
[56,"Арский","МБОУ \"Сикертанская основная общеобразовательная школа имени Галиаскара Камала\" Арского муниципального района Республики Татарстан",{"$nulls":15},1,1]
[57,"Арский","МБОУ \"Хасаншаихская основная общеобразовательная школа\" Арского муниципального района Республики Татарстан",null,null,1,{"$nulls":5},1,{"$nulls":7},2]
[58,"Арский","МБОУ \"Шушмабашская средняя общеобразовательная школа\" Арского муниципального района Республики Татарстан",1,null,3,2,{"$nulls":3},2,{"$nulls":8},8]
[59,"Арский","МБОУ «Апазовская средняя общеобразовательная школа» Арского муниципального района Республики Татарстан",{"$nulls":7},1,1,{"$nulls":7},2]
[60,"Арский","МБОУ «Арская гимназия №5» Арского муниципального района Республики Татарстан",{"$nulls":4},1,1,1,{"$nulls":9},3]
[61,"Арский","МБОУ «Арская средняя общеобразовательная школа №2» Арского муниципального района Республики Татарстан",{"$nulls":4},2,1,1,{"$nulls":9},4]
[62,"Арский","МБОУ «Арская средняя общеобразовательная школа №7» Арского муниципального района Республики Татарстан",{"$nulls":4},3,2,2,{"$nulls":9},7]
[63,"Арский","МБОУ «Казанбашская основная общеобразовательная школа» Арского муниципального района Республики Татарстан",{"$nulls":7},1,1,{"$nulls":7},2]
[64,"Арский","МБОУ «Лесхозская средняя общеобразовательная школа» Арского муниципального района Республики Татарстан",{"$nulls":4},1,{"$nulls":11},1]
[65,"Арский","МБОУ «Ново-Кырлайская средняя общеобразовательная школа имени Г.Тукая» Арского муниципального района Республики Татарстан",null,null,1,{"$nulls":13},1]
[66,"Арский","МБОУ «Старочурилинская средняя общеобразовательная школа» Арского муниципального района Республики Татарстан",{"$nulls":4},3,{"$nulls":4},1,{"$nulls":6},{"$f":"SUM(D68:S68)","v":4}]
[67,"Арский","МБОУ «Ташкичинская основная общеобразовательная школа» Арского муниципального района Республики Татарстан",null,null,1,{"$nulls":13},1]
[68,"Атнинский ","МБОУ«Большеатнинская средняя общеобразовательная школа» Атнинского муниципального района Республики Татарстан",{"$nulls":5},1,{"$nulls":10},1]
[69,"Бавлинский ","МБОУ \"Татарско-Тумбарлинская основная общеобразовательная школа \" Бавлинского муниципального рйона Республики Татарстан",{"$nulls":8},1,{"$nulls":7},1]
[70,"Балтасинский","МБОУ \"Балтасинская гимназия\" Балтасинского муниципального района Республики Татарстан",{"$nulls":4},2,1,2,{"$nulls":9},5]
[71,"Балтасинский","МБОУ \"Балтасинская средняя общеобразовательная школа\" Балтасинского муниципального района Республики Татарстан",{"$nulls":4},2,1,2,{"$nulls":9},5]
[72,"Балтасинский","МБОУ \"Бурбашская средняя общеобразовательная школа\" Балтасинского муниципального района Республики Татарстан",{"$nulls":9},1,{"$nulls":6},1]
[73,"Балтасинский","МБОУ \"Мало-Лызинская средняя общеобразовательная школа\" Балтасинского муниципального района Республики Татарстан",{"$nulls":13},2,null,null,2]
[74,"Балтасинский","МБОУ \"Ципьинская средняя общеобразовательная школа\" Балтасинского муниципального района Республики Татарстан",{"$nulls":10},1,null,null,2,null,null,3]
[75,"Балтасинский","МБОУ \"Шубанская  основная общеобразовательная школа\" Балтасинского муниципального района Республики Татарстан",{"$nulls":3},1,{"$nulls":12},1]
[76,"Балтасинский","МБОУ «Карадуванская гимназия имени Баки Зиятдинова» Балтасинского муниципального района Республики Татарстан",null,null,1,{"$nulls":13},1]
[77,"Балтасинский","МБОУ «Кугунурская средняя общеобразовательная школа» Балтасинского муниципального района Республики Татарстан",null,null,1,{"$nulls":13},1]
[78,"Балтасинский","МБОУ «Нурминская средняя общеобразовательная школа» Балтасинского муниципального района Республики Татарстан",null,null,2,2,2,3,null,1,1,{"$nulls":7},11]
[79,"Бугульминский","МБОУ \"Карабашская средняя школа №2\" Бугульминского муниципального района Республики Татарстан",{"$nulls":4},1,{"$nulls":11},1]
[80,"Бугульминский","МБОУ лицей № 2 Бугульминского муниципального района Республики Татарстан",{"$nulls":6},1,{"$nulls":5},1,{"$nulls":3},2]
[81,"Бугульминский","МБОУ лицей-интернат имени Мустафы Онджеля Бугульминского муниципального района Республики Татарстан",null,3,{"$nulls":4},1,2,3,{"$nulls":6},1,10]
[82,"Бугульминский","МБОУ Наратлинская основная общеобразовательная школа Бугульминского муниципального района Республики Татарстан",{"$nulls":14},1,null,1]
[83,"Бугульминский","МБОУ основная общеобразовательная школа № 8 Бугульминского муниципального района Республики Татарстан",{"$nulls":12},1,{"$nulls":3},1]
[84,"Бугульминский","МБОУ средняя общеобразовательная школа № 11 Бугульминского муниципального района Республики Татарстан",{"$nulls":12},2,{"$nulls":3},2]
[85,"Бугульминский","МБОУ средняя общеобразовательная школа №6 с углубленным изучением отдельных предметов Бугульминского муниципального района Республики Татарстан",{"$nulls":15},1,1]
[86,"Бугульминский","МБОУ татарская гимназия № 14 имени Хади Атласи Бугульминского муниципального района Республики Татарстан",{"$nulls":7},2,2,{"$nulls":7},4]
[87,"Бугульминский","МБОУ Татарская Дымская основная общеобразовательная школа Бугульминского муниципального района Республики Татарстан",null,null,1,1,{"$nulls":12},2]
[88,"Буинский","МБОУ \"Гимназия имени М.М. Вахитова города Буинска Республики Татарстан\"",{"$nulls":7},1,{"$nulls":8},1]
[89,"Буинский","МБОУ «Нижне-Наратбашская основная общеобразовательная школа Буинского муниципального района Республики Татарстан»",{"$nulls":7},1,{"$nulls":8},1]
[90,"Буинский ","МБОУ \"Гимназия № 5 города Буинска Республики Татарстан\"",{"$nulls":4},1,null,2,{"$nulls":9},3]
[91,"Буинский ","МБОУ \"Новотинчалинская средняя общеобразовательная школа имени Н.Г.Фаизова Буинского муниципального района Республики Татарстан\"",{"$nulls":8},1,{"$nulls":7},1]
[92,"Буинский ","МБОУ \"Средняя общеобразовательная школа №1 c углубленным изучением отдельных предметов\" г.Буинска Республики Татарстан",{"$nulls":4},1,2,{"$nulls":10},3]
[93,"Буинский  ","МБОУ \"Бюргановская средняя общеобразовательная школа Буинского муниципального района Республики Татарстан\"",{"$nulls":14},1,null,1]
[94,"Буинский  ","МБОУ \"Кайбицкая основная общеобразовательная школа Буинского муниципального района Республики Татарстан\"",null,null,1,{"$nulls":4},1,{"$nulls":8},2]
[95,"Буинский  ","МБОУ \"Чувашско-Кищаковская средняя общеобразовательная школа Буинского муниципального района Республики Татарстан\"",{"$nulls":14},1,null,1]
[96,"Вахитовский","МАОУ для детей, проявивших выдающиеся способности \"Средняя общеобразовательная школа-интернат \"Специализированный олимпиадно-научный центр \"СОлНЦе\" Вахитовского района г.Казани",{"$nulls":15},1,1]
[97,"Вахитовский","МБОУ \"Гимназия №27 с татарским языком обучения\" Вахитовского района г.Казани",null,null,3,{"$nulls":5},1,1,{"$nulls":6},5]
[98,"Вахитовский","МБОУ \"Гимназия №96\" Вахитовского района г.Казани",{"$nulls":6},1,{"$nulls":9},1]
[99,"Вахитовский","МБОУ \"Лицей №116 имени Героя Советского Союза А.С. Умеркина\" Вахитовского района г. Казани\"",{"$nulls":6},2,{"$nulls":9},2]
[100,"Вахитовский","МБОУ \"Средняя общеобразовательная школа №98 (татарско-русская)\" Вахитовского района г. Казани",{"$nulls":6},1,{"$nulls":9},1]
[101,"Вахитовский","МБОУ «Средняя общеобразовательная татарско-русская школа №80 с углубленным изучением отдельных предметов» Вахитовского района г. Казани",{"$nulls":7},1,{"$nulls":8},1]
[102,"Верхнеуслонский","ГАОУ \"Лицей Иннополис\"",{"$nulls":4},4,3,1,null,null,1,{"$nulls":6},9]
[103,"Высокогорский ","МБОУ \"Высокогорская средняя общеобразовательная школа  №3 Высокогорского муниципального района Республики Татарстан\"",{"$nulls":4},4,{"$nulls":11},4]
[104,"Высокогорский ","МБОУ \"Высокогорская средняя общеобразовательная школа №2 Высокогорского муниципального района Республики Татарстан\"",{"$nulls":4},3,1,{"$nulls":10},4]
[105,"Высокогорский ","МБОУ «Мульминская средняя общеобразовательная школа Высокогорского муниципального района Республики Татарстан»",null,null,2,{"$nulls":13},2]
[106,"Высокогорский  ","МБОУ \"Дубьязская средняя общеобразовательная школа Высокогорского муниципального района Республики Татарстан\"",{"$nulls":3},1," ",{"$nulls":11},1]
[107,"Высокогорский  ","МБОУ \"Чепчуговская средняя общеобразовательная школа Высокогорского униципального района Республики Татарстан\"",{"$nulls":6},1,{"$nulls":9},1]
[108,"Высокогорский  ","МБОУ \"Ямашурминская средняя общеобразовательная школа\" Высокогорского муниципального района Республики Татарстан  ",null,null,1,1," ",{"$nulls":11},2]
[109,"Дрожжановский","МБОУ \"Старошаймурзинская средняя общеобразовательная школа\" Дрожжановского муниципального района Республики Татарстан",{"$nulls":7},1,1,{"$nulls":7},2]
[110,"Дрожжановский ","МБОУ \"Большеаксинская средняя общеобразовательная школа\" Дрожжановского муниципального района Республики Татарстан",{"$nulls":14},4,null,4]
[111,"Дрожжановский  ","МБОУ \"Городищенская средняя общеобразовательная школа\" Дрожжановского муниципального района Республики Татарстан",{"$nulls":14},2,null,2]
[112,"Дрожжановский  ","МБОУ \"Матакская средняя общеобразовательная школа имени Героя Советского Союза Семёна Артемьевича Уганина\" Дрожжановского муниципального района Республики Татарстан",{"$nulls":14},2,null,2]
[113,"Дрожжановский  ","МБОУ \"Стародрожжановский многопрофильный лицей\" Дрожжановского муниципального района Республики Татарстан\"",{"$nulls":14},1,null,1]
[114,"Дрожжановский  ","МБОУ \"Убеевская средняя общеобразовательная школа имени дважды Героя Социалистического Труда Дементьева Петра Васильевича\" Дрожжановского муниципального района Республики Татарстан",{"$nulls":14},1,null,1]
[115,"Дрожжановский  ","МБОУ \"Хорновар-Шигалинская средняя общеобразовательная школа имени Героя Советского Союза Юхвитова Петра Сергеевича\" Дрожжановского муниципального района Республики Татарстан",{"$nulls":14},2,null,2]
[116,"Дрожжановский  ","МБОУ \"Чувашско-Дрожжановская средняя общеобразовательная школа\" Дрожжановского муниципального района Республики Татарстан",{"$nulls":14},1,null,1]
[117,"Елабужский","МБОУ \"Средняя общеобразовательная школа №10\" Елабужского муниципального района Республики Татарстан",{"$nulls":5},1,1,{"$nulls":9},2]
[118,"Елабужский","МБОУ \"Средняя общеобразовательная школа №9 с углубленным изучением отдельных предметов\" Елабужского муниципального района Республики Татарстан",{"$nulls":4},1,{"$nulls":10},1,2]
[119,"Елабужский","МБОУ \"Старо-Юрашская средняя общеобразовательная школа\" Елабужского муниципального района Республики Татарстан",null,null,1,2,{"$nulls":12},3]
[120,"Елабужский","МБОУ «Гимназия №1 – Центр национального образования» Елабужского муниципального района Республики Татарстан",null,null,2,{"$nulls":4},1,{"$nulls":8},3]
[121,"Заинский","МБОУ «Верхненалимская основная общеобразовательная школа» Заинского муниципального района Республики Татарстан",{"$nulls":3},1,{"$nulls":12},1]
[122,"Заинский","МБОУ «Татарская гимназия имени Р.Ш.Фардиева» Заинского муниципального района Республики Татарстан",null,null,1,2,{"$nulls":12},3]
[123,"Заинский ","МБОУ \"Заинская средняя общеобразовательная школа  №6\" Заинского муниципального района Республики Татарстан",{"$nulls":5},1,{"$nulls":10},1]
[124,"Заинский ","МБОУ «Кадыровская средняя общеобразовательная школа» Заинского муниципального района Республики Татарстан",{"$nulls":3},1,{"$nulls":4},1,{"$nulls":7},2]
[125,"Заинский  ","МБОУ \"Заинская средняя общеобразовательная школа №7 с углубленным изучением отдельных предметов\" Заинского муниицпального района Республики Татарстан",{"$nulls":15},1,1]
[126,"Заинский  ","МБОУ \"Нижнебишевская  средняя общеобразовательная школа» Заинского муниципального района Республики Татарстан",null,null,1,1,{"$nulls":12},2]
[127,"Зеленодольский ","МБОУ \"Гимназия №10 Зеленодольского муниципального района Республики Татарстан\"",{"$nulls":4},1,{"$nulls":11},1]
[128,"Зеленодольский ","МБОУ \"Гимназия №3 Зеленодольского муниципального района Республики Татарстан\"",{"$nulls":9},1,{"$nulls":6},1]
[129,"Зеленодольский ","МБОУ \"Гимназия №5 Зеленодольского муниципального района Республики Татарстан\"",{"$nulls":8},1,{"$nulls":7},1]
[130,"Зеленодольский ","МБОУ «Средняя общеобразовательная школа №7 имени Героя Советского Союза В.Х. Хазиева Зеленодольского муниципального района Республики Татарстан»",{"$nulls":4},2,{"$nulls":11},{"$f":"SUM(D132:S132)","v":2}]
[131,"Зеленодольский  ","МБОУ \"Осиновская гимназия имени С.К.Гиматдинова Зеленодольского муниципального района Республики Татарстан\"",null,null,1,{"$nulls":13},1]
[132,"Зеленодольский  ","МБОУ \"Средняя общеобразовательная школа №4 Зеленодольского муниципального района Республики Татарстан\"",{"$nulls":15},1,1]
[133,"Кайбицкий ","МБОУ \"Федоровская средняя общеобразовательная школа имени Евгения Геннадиевича Тутаева Кайбицкого муниципального района Республики Татарстан\"",{"$nulls":4},1,1,1,{"$nulls":9},3]
[134,"Кайбицкий ","МБОУ «Большекайбицкая средняя общеобразовательная школа - центр образования цифрового и гуманитарного профилей Кайбицкого муниципального района Республики Татарстан»",{"$nulls":4},2,2,{"$nulls":10},4]
[135,"Кайбицкий  ","МБОУ «Муралинская основная общеобразовательная школа  Кайбицкого муниципального района Республики Татарстан»",null,null,1,{"$nulls":13},1]
[136,"Камско-Устьинский","МБОУ \"Камскоустьинская средняя общеобразовательная школа\" Камско-Устьинского муниципального района Республики Татарстан",{"$nulls":5},1,{"$nulls":10},1]
[137,"Камско-Устьинский","МБОУ \"Старо-Казеевская средняя общеобразовательная школа\" Староказеевского сельского поселения Камско-Устьинского муниципального района Республики Татарстан",{"$nulls":3},1,{"$nulls":4},1,{"$nulls":7},2]
[138,"Кировский","МАОУ «Гимназия-интернат №4» Кировского района г.Казани",1,23,null,null,3,null,2,8,4,{"$nulls":7},41]
[139,"Кировский","МБОУ \"Гимназия №3 с татарским языком обучения\" Кировского района г.Казани",null,null,1,{"$nulls":13},1]
[140,"Кировский","МБОУ \"Политехнический лицей №182\" Кировского района г.Казани",{"$nulls":6},2,{"$nulls":9},2]
[141,"Кировский","МБОУ \"Средняя общеобразовательная школа №137 с углубленным изучением отдельных предметов\" Кировского района г.Казани",{"$nulls":4},1,{"$nulls":11},1]
[142,"Кировский","МБОУ \"Средняя общеобразовательная школа №8\" Кировского района г.Казани",1,{"$nulls":15},1]
[143,"Кировский","МБОУ \"Татарская гимназия №15\" Кировского района г.Казани",{"$nulls":7},1,{"$nulls":8},1]
[144,"Кукморский","МБОУ \"Чарлинская средняя общеобразовательная школа\" Кукморского муниципального района Республики Татарстан",{"$nulls":4},1,{"$nulls":11},1]
[145,"Кукморский ","МБОУ \" Средняя общеобразовательная школа им.С.А.Ахтямова с.Манзарас\"  Кукморского муниципального района Республики Татарстан",{"$nulls":4},1,{"$nulls":11},1]
[146,"Кукморский ","МБОУ \"Кукморская средняя  школа №3\"  Кукморского муниципального района Республики Татарстан",{"$nulls":4},3,1,4,{"$nulls":9},8]
[147,"Кукморский ","МБОУ \"Кукморская средняя  школа №4\" Кукморского муниципального района Республики Татарстан",{"$nulls":4},3,4,1,{"$nulls":9},8]
[149,"Кукморский ","МБОУ «Олуязская средняя школа им. Г. Х. Хабибрахманова» Кукморского муниципального района Республики Татарстан",{"$nulls":8},1,{"$nulls":7},1]
[150,"Кукморский ","МБОУ «Средняя общеобразовательная школа им. Г.Г.Гарифуллина с.Ядыгерь» Кукморского муниципального района Республики Татарстан",null,null,1,{"$nulls":13},1]
[151,"Кукморский ","МБОУ «Средняя общеобразовательная школа села Средний Кумор» Кукморского муниципального района Республики Татарстан",{"$nulls":8},1,{"$nulls":7},1]
[152,"Кукморский  ","МБОУ  \"Гимназия №1 им. Ч.Т.Айтматова п.г.т. Кукмор\" Кукморского муниципального района Республики Татарстан",null,null,2,{"$nulls":5},2,{"$nulls":6},1,5]
[153,"Кукморский  ","МБОУ \"Лельвижская средняя школа\" Кукморского муниципального района Республики Татарстан",{"$nulls":13},2,null,null,2]
[154,"Кукморский  ","МБОУ «Гимназия с.Большой Сардек им.К.Ф.Шакирова» Кукморского муниципального района Республики Татарстан",null,null,3,{"$nulls":6},1,{"$nulls":6},4]
[155,"Лаишевский","МБОУ «Пелевская средняя общеобразовательная школа» Лаишевского муниципального района Республики Татарстан",null,null,1,{"$nulls":13},1]
[156,"Лаишевский ","МБОУ \"Атабаевская средняя общеобразовательная школа имени Героя Российской Федерации  Ахметшина Марата Радиковича \" Лаишевского муниципального района Республики Татарстан",{"$nulls":8},1,{"$nulls":7},1]
[157,"Лаишевский ","МБОУ \"Сокуровская средняя общеобразовательная школа имени Г.Р.Державина\" Лаишевского муниципального района Республики Татарстан",{"$nulls":4},1,{"$nulls":11},1]
[158,"Лаишевский ","МБОУ \"Столбищенская средняя общеобразовательная школа имени Героя Советского Союза Алексея  Петровича Малышева\" Лаишевского муниципального района Республики Татарстан",{"$nulls":3}," ",null,1,{"$nulls":10},1]
[159,"Лаишевский ","МБОУ Лаишевская средняя общеобразовательная школа №2 им. Героя Советского Союза Б.К.Кузнецова Лаишевского муниципального района Республики Татарстан",{"$nulls":4},1,{"$nulls":11},1]
[160,"Лаишевский  "," МБОУ \"Малоелгинская средняя общеобразовательная школа\" Лаишевского муниципального района Республики Татарстан",null,null,2,1,{"$nulls":12},3]
[161,"Лениногорский ","МБОУ \"Гимназия №11\" муниципального образования \"Лениногорский муниципальный район” Республики Татарстан",{"$nulls":8},1,{"$nulls":7},1]
[162,"Лениногорский ","МБОУ \"Тимяшевская средняя общеобразовательная школа\" муниципального образования \"Лениногорский муниципальный район” Республики Татарстан",{"$nulls":7},1,1,{"$nulls":7},2]
[163,"Лениногорский  ","МБОУ \"Средняя общеобразовательная школа №2\" муниципального образования \"Лениногорский муниципальный район\" Республики Татарстан",{"$nulls":15},1,1]
[164,"Лениногорский  ","МБОУ \"Средняя общеобразовательная школа №5\" муниципального образования  \"Лениногорский муниципальный район\" Республики Татарстан",{"$nulls":15},1,1]
[165,"Лениногорский  ","МБОУ \"Средняя общеобразовтельная школа №6 г. Лениногорска\" муниципального образования \"Лениногорский муниципальный район\" Республики Татарстан ",{"$nulls":9},1,{"$nulls":6},1]
[166,"Лениногорский  ","МБОУ \"Урмышлинская основная общеобразовательная школа\" муниципального образования \"Лениногорский муниципальный район\" Республики Татарстан",{"$nulls":3},1,{"$nulls":12},1]
[167,"Мамадышский","МБОУ \"Лицей №2  им.ак.К.А.Валиева г.Мамадыш\"  Мамадышского муниципального района Республики Татарстан",{"$nulls":4},5,3,4,{"$nulls":9},12]
[168,"Мамадышский","МБОУ «Зюринская средняя общеобразовательная школа» Мамадышского муниципального района Республики Татарстан",null,null,1,{"$nulls":13},1]
[169,"Мамадышский ","МБОУ \"Олуязский лицей\" Мамадышского муниципального района Республики Татарстан",null,null,3,1,{"$nulls":12},4]
[170,"Мамадышский ","МБОУ \"Средняя общеобразовательная  школа №4 г.Мамадыш\"    Мамадышского муниципального района Республики Татарстан",{"$nulls":4},2,null,5,{"$nulls":9},7]
[171,"Мамадышский  ","МБОУ  \"Большешиинская средняя  общеобразовательная школа\"  Мамадышского  муниципального  района  Республики  Татарстан",{"$nulls":10},1,{"$nulls":5},1]
[172,"Мамадышский  ","МБОУ \"Верхнеошминская  основная общеобразовательная школа\" Мамадышского муниципального района Республики Татарстан",{"$nulls":3},1,{"$nulls":12},1]
[173,"Мамадышский  ","МБОУ \"Верхнесуньская основная общеобразовательная школа\" Мамадышского муниципального района Республики Татарстан",{"$nulls":3},1,{"$nulls":12},1]
[174,"Мамадышский  ","МБОУ \"Зверосовхозская средняя общеобразовательная школа\" Мамадышского муниципального района Республики Татарстан",{"$nulls":6},1,{"$nulls":9},1]
[175,"Мамадышский  ","МБОУ \"Катмышская средняя общеобразовательная школа\" Мамадышского муниципального района Республики Татарстан",null,null,1,{"$nulls":13},1]
[176,"Мамадышский  ","МБОУ \"Красногорская средняя общеобразовательная школа\" Мамадышского муниципального района Республики Татарстан",{"$nulls":6},1,{"$nulls":9},1]
[177,"Мамадышский  ","МБОУ \"Куюк-Ерыксинская средняя общеобразовательная школа\" Мамадышского муниципального района Республики Татарстан",{"$nulls":3},1,{"$nulls":11},1,2]
[178,"Мамадышский  ","МБОУ \"Малосуньская основная общеобразовательная школа\" Мамадышского муниципального района Республики Татарстан",null,null,1,{"$nulls":13},1]
[179,"Мамадышский  ","МБОУ \"Средняя общеобразовательная школа №1 города Мамадыш\" Мамадышского муниципального района Республики Татарстан",{"$nulls":4},2,{"$nulls":10},1,3]
[180,"Мамадышский  ","МБОУ \"Средняя общеобразовательная школа №3 г.Мамадыш\" Мамадышского муниципального района Республики Татарстан",{"$nulls":6},1,{"$nulls":9},1]
[181,"Мамадышский  ","МБОУ \"Усалинская средняя общеобразовательная школа\" Мамадышского муниципального района Республики Татарстан",null,null,2,{"$nulls":13},2]
[182,"Мамадышский  ","МБОУ \"Шадчинская средняя общеобразовательная школа\" Мамадышского муниципального района Республики Татарстан",{"$nulls":3},1,{"$nulls":12},1]
[183,"Менделеевский  ","МБОУ \"Монашевская средняя общеобразовательная школа\" Менделеевского муниципального района Республики Татарстан",{"$nulls":13},1,null,null,1]
[184,"Мензелинский","МБОУ \"Гимназия\" г.Мензелинска Республики Татарстан",null,null,1,{"$nulls":13},1]
[185,"Мензелинский ","МБОУ \"Аюская основная общеобразовательная школа имени Р.Х. Кагирова\" Мензелинского муниципального района Республики Татарстан",{"$nulls":8},1,{"$nulls":7},1]
[186,"Мензелинский  ","МБОУ \"Калтаковская средняя общеобразовательная школа\" Мензелинского муниципального района Республики Татарстан",{"$nulls":10},1,{"$nulls":5},1]
[187,"Мензелинский  ","МБОУ \"Урусовская основная  общеобразовательная школа имени Р.Закирова\" Мензелинского муниципального района Республики Татарстан",{"$nulls":3},1,{"$nulls":12},1]
[188,"Московский","МАОУ \"Лицей-интернат №2\" Московского района г.Казани",1,6,{"$nulls":13},1,8]
[189,"Московский","МБОУ \"Гимназия №12 с татрским языком обучения им. Ф.Г. Аитовой\" Московского района г.Казани",null,3,1,{"$nulls":4},3,2,1,{"$nulls":6},10]
[190,"Московский","МБОУ \"Средняя общеобразовательная татарско-русская школа № 34\" Московского района г.Казани",{"$nulls":7},1,1,{"$nulls":7},2]
[191,"Московский","МБОУ \"Татарская гимназия № 2 имени Шигабутдина Марджани при Казанском Федеральном университете\" Московского района города Казани",4,null,5,2,{"$nulls":3},4,5,2,{"$nulls":6},22]
[192,"Московский","МБОУ \"Татарская гимназия №17 им.Г.Ибрагимова\" Московского района г.Казани\"",{"$nulls":3},4,{"$nulls":3},6,{"$nulls":8},10]
[193,"Муслюмовский ","МБОУ \"Баюковская основная общеобразовательная школа\" Муслюмовского муниципального района Республики Татарстан",{"$nulls":3},1,{"$nulls":12},1]
[194,"Муслюмовский ","МБОУ \"Кубяковская средняя общеобразовательная школа\" Муслюмовского муниципального района Республики Татарстан ",{"$nulls":3},1,{"$nulls":12},1]
[195,"Муслюмовский ","МБОУ \"Муслюмовская гимназия\" Муслюмовского муниципального района Республики Татарстан",{"$nulls":4},2,1,null,1,1,{"$nulls":7},{"$f":"SUM(D196:S196)","v":5}]
[196,"Муслюмовский  ","МБОУ \"Большечекмакская основная общеобразовательная школа\" Муслюмовского муниципального района Республики Татарстан",{"$nulls":15},1,1]
[197,"Муслюмовский  ","МБОУ \"Мари Булярская основная общеобразовательная школа\" Муслюмовского муниципального района Республики Татарстан  ",{"$nulls":6},1,{"$nulls":9},1]
[198,"Муслюмовский  ","МБОУ \"Салауз-Муханская основная общеобразовательная школа\" Муслюмовского муниципального района Республики Татарстан",{"$nulls":15},1,1]
[199,"Муслюмовский  ","МБОУ Муслюмовский лицей Муслюмовского муниципального района Республики Татарстан",{"$nulls":4},3,1,3,1,1,{"$nulls":6},1,10]
[200,"Набережные Челны","МАОУ \"Гимназия №61\" г. Набережные Челны",{"$nulls":9},1,{"$nulls":6},1]
[201,"Набережные Челны","МАОУ «Лицей-интернат № 84 имени Гали Акыша» города Набережные Челны",null,null,1,{"$nulls":13},1]
[202,"Набережные Челны","МАОУ города Набережные Челны \"Гимназия № 76\"",{"$nulls":4},2,1,1,null,null,1,{"$nulls":6},5]
[203,"Набережные Челны","МАОУ города Набережные Челны \"Гимназия №57\"",{"$nulls":9},2,{"$nulls":6},2]
[204,"Набережные Челны","МАОУ города Набережные Челны \"Гимназия №77\" ",{"$nulls":15},4,4]
[205,"Набережные Челны","МАОУ города Набережные Челны \"Лицей №78 им.А.С.Пушкина\"",{"$nulls":4},3,1,1,null,null,2,{"$nulls":6},7]
[206,"Набережные Челны","МБОУ \"Гимназия №2 имени Мулланура Вахитова\" г.Набережные Челны ",null,1,null,1,{"$nulls":3},1,{"$nulls":8},3]
[207,"Набережные Челны","МБОУ \"Гимназия №26\" города Набережные Челны ",{"$nulls":15},2,2]
[208,"Набережные Челны","МБОУ \"Лицей-интернат №79\" города Набережные Челны ",null,1,null,null,1,2,{"$nulls":9},1,5]
[209,"Набережные Челны","МБОУ \"Средняя общеобразовательная школа № 6\" г.Набережные Челны",{"$nulls":6},1,{"$nulls":9},1]
[210,"Набережные Челны","МБОУ \"Средняя общеобразовательная школа №11\" города Набережные Челны ",{"$nulls":15},1,1]
[211,"Набережные Челны","МБОУ \"Средняя общеобразовательная школа №3\" г.Набережные Челны",{"$nulls":6},1,{"$nulls":9},1]
[212,"Набережные Челны","МБОУ \"Средняя общеобразовательная школа №37 с углубленным изучением отдельных предметов\" г.Набережные Челны",{"$nulls":6},2,{"$nulls":9},2]
[213,"Набережные Челны","МБОУ \"Средняя общеобразовательная школа №58\" г.Набережные Челны",{"$nulls":6},2,{"$nulls":9},2]
[214,"Набережные Челны","МБОУ \"Средняя общеобразовательная школа №60\" города Набережные Челны Республики Татарстан",null,1,{"$nulls":14},1]
[215,"Набережные Челны","МБОУ «Средняя общеобразовательная школа №41» г.Набережные Челны",{"$nulls":4},1,null,1,{"$nulls":9},2]
[216,"Набережные Челны","МБОУ «Средняя общеобразовательная школа №52»",{"$nulls":7},1,{"$nulls":8},1]
[217,"Набережные Челны","МБОУ\"Гимназия № 54\" г.Набережные Челны Республики Татарстан",null,null,1,{"$nulls":13},1]
[218,"Набережные Челны","МБОУ«Средняя общеобразовательная школа №30» г.Набережные Челны",null,null,1,null,4,1,2,{"$nulls":9},8]
[219,"Нижнекамский","МБОУ «Каенлинская средняя общеобразовательная школа» Нижнекамского муниципального района Республики Татарстан",{"$nulls":3},1,{"$nulls":12},1]
[220,"Нижнекамский","МБОУ «Лицей-интернат №24» Нижнекамского муниципального района Республики Татарстан",null,1,{"$nulls":14},1]
[221,"Нижнекамский","МБОУ «Средняя общеобразовательная школа №5» Нижнекамского муниципального района Республики Татарстан",1,{"$nulls":15},1]
[222,"Нижнекамский ","МБОУ \"Гимназия № 1\" Нижнекамского муниципального района Республики Татарстан",{"$nulls":7},1,1,{"$nulls":7},2]
[223,"Нижнекамский ","МБОУ «Гимназия №2» имени Баки Урманче Нижнекамского муниципального района Республики Татарстан",null,2,{"$nulls":5},1,{"$nulls":8},3]
[224,"Нижнекамский ","МБОУ «Гимназия-интернат №13» Нижнекамского муниципального района Республики Татарстан",null,1,{"$nulls":14},1]
[225,"Нижнекамский ","МБОУ «Лицей №35» Нижнекамского муниципального района Республики Татарстан",{"$nulls":5},1,{"$nulls":9},2,3]
[226,"Нижнекамский  ","МБОУ \"Гимназия №22\" Нижнекамского муниципального района Республики Татарстан",{"$nulls":15},3,3]
[227,"Нижнекамский  ","МБОУ \"Гимназия №25\" Нижнекамского муниципального района Республики Татарстан",{"$nulls":15},1,1]
[228,"Нижнекамский  ","МБОУ \"Гимназия №32\" Нижнекамского муниципального района Республики Татарстан",{"$nulls":5},1,1,{"$nulls":8},1,3]
[229,"Нижнекамский  ","МБОУ «Гимназия-интернат №34» Нижнекамского муниципального района Республики Татарстан",{"$nulls":14},3,null,3]
[230,"Ново-Савиновский"," МБОУ \"Гимназия №13 с татарским языком обучения\" Ново-Савиновского района г.Казани",null,null,4,1,{"$nulls":12},5]
[231,"Ново-Савиновский","ГАОУ \"Полилингвальный комплекс \"Адымнар - путь к знаниям и согласию\" г.Казани",null,3,{"$nulls":14},3]
[232,"Ново-Савиновский","Инженерный лицей-интернат КНИТУ-КАИ г.Казани",null,1,{"$nulls":14},1]
[233,"Ново-Савиновский","МАОУ \"Лицей-интернат №7\" Ново-Савиновского района г.Казани",null,7,null,1,{"$nulls":3},2,2,{"$nulls":7},12]
[234,"Ново-Савиновский","МБОУ \"Гимназия №155 с татарским языком обучения\" Ново-Савиновского района г. Казани",null,1,{"$nulls":5},2,{"$nulls":7},1,4]
[235,"Ново-Савиновский","МБОУ \"Гимназия №179 - центр образования\" Ново-Савиновского района г.Казани",{"$nulls":5},3,{"$nulls":10},3]
[236,"Ново-Савиновский","МБОУ \"Гимназия №7 имени героя России А.В.Козина\" Ново-Савиновского района г.Казани",{"$nulls":15},3,3]
[237,"Ново-Савиновский","МБОУ \"Лицей №177\" Ново-Савиновского района г. Казани",{"$nulls":15},1,1]
[238,"Ново-Савиновский","МБОУ \"Средняя общеобразовательная школа №170 с углубленным изучением отдельных предметов\" Ново-Савиновского района г. Казани",{"$nulls":4},1,{"$nulls":11},1]
[239,"Ново-Савиновский","МБОУ \"Средняя общеобразовательная школа №85 с углубленным изучением отдельных предметов\" Ново-Савиновского района г.Казани",{"$nulls":7},1,{"$nulls":8},1]
[240,"Ново-Савиновский","МБОУ «Лицей №23» Ново-Савиновского района г.Казани",{"$nulls":7},1,{"$nulls":8},1]
[241,"Ново-Савиновский","МБОУ «Средняя общеобразовательная татарско-русская школа №113 с углублённым изучением отдельных предметов им. Героя М.Р.Ахметшина» Ново-Савиновского района г. Казани",null,1,{"$nulls":14},1]
[242,"Новошешминский","МБОУ \"Новошешминская гимназия\" Новошешминского муниципального района Республики Татарстан",{"$nulls":3}," ",1,null," ",{"$nulls":9},1]
[243,"Новошешминский ","МБОУ \"Зиреклинский лицей Новошешминского муниципального района Республики Татарстан\"",{"$nulls":3},1," "," ",null,null,1,{"$nulls":7},2]
[244,"Новошешминский  ","МБОУ \"Шахмайкинская средняя общеобразовательная школа Новошешминского Муниципального района Республики Татарстан\"",{"$nulls":3},2,{"$nulls":12},2]
[245,"Нурлатский","МАОУ \"Средняя общеобразовательная школа №4\" г.Нурлат Республики Татарстан",{"$nulls":4},2,2,null,2,2,{"$nulls":7},8]
[246,"Нурлатский","МАОУ «Cредняя общеобразовательная школа №2» г.Нурлат Республики Татарстан",{"$nulls":8},2,{"$nulls":7},2]
[247,"Нурлатский ","МБОУ \"Биляр-Озерская средняя общеобразовательная школа\" Нурлатского муниципального района Республики Татарстан",{"$nulls":4},1,1,1,{"$nulls":9},3]
[248,"Нурлатский ","МБОУ \"Кульбаево-Марасинская средняя общеобразовательная школа\" Нурлатского муниципального района Республики Татарстан",null,null,1,null,null,3,{"$nulls":10},4]
[249,"Нурлатский  ","МАОУ \"Нурлатская гимназия имени Героя Советского Союза М.Е.Сергеева\" г.Нурлат Республики Татарстан",{"$nulls":4},1,1,{"$nulls":9},1,3]
[250,"Нурлатский  ","МАОУ \"Средняя общеобразовательная школа №9\" г.Нурлат Республики Татарстан",{"$nulls":15},2,2]
[251,"Нурлатский  ","МБОУ \"Степноозерская основная общеобразовательная школа\" Нурлатского муниципального района Республики Татарстан",{"$nulls":3},1,null," ",{"$nulls":10},1]
[252,"Пестречинский ","МБОУ \"Конская  основная общеобразовательная школа им. П. М. Гаврилова\" Пестречинского муниципального района Республики Татарстан",{"$nulls":7},1,1,{"$nulls":7},2]
[253,"Пестречинский ","МБОУ \"Отар-Дубровская средняя общеобразовательная школа \" Пестречинского муниципального района Республики Татарстан",{"$nulls":8},1,{"$nulls":7},1]
[254,"Пестречинский ","МБОУ \"Пестречинская средняя общеобразовательная школа №2\" Пестречинского муниципального района Республики Татарстан",{"$nulls":4},2,1,null,2,1,{"$nulls":7},6]
[255,"Пестречинский ","МБОУ «Шалинская средняя общеобразовательная школа имени Сафина Файзрахмана Ахметзяновича» Пестречинского муниципального района Республики Татарстан Пестречинского муниципального района",{"$nulls":7},2,{"$nulls":8},2]
[256,"Пестречинский  ","МБОУ \"Пестречинская средняя общеобразовательная школа №1\" Пестречинского муниципального района Республики Татарстан",{"$nulls":6},1,{"$nulls":9},1]
[257,"Приволжский  ","МАОУ \"Гимназия №19\" Приволжского района г.Казани",null,1,null,null,1,null,1,{"$nulls":9},3]
[258,"Приволжский  ","МБОУ \"Лицей №35 - образовательный центр \"Галактика\" Приволжского района города Казани",{"$nulls":4},4,{"$nulls":11},4]
[259,"Приволжский  ","МБОУ \"Лицей №83 - Центр образования\" Приволжского района г. Казани",{"$nulls":15},1,{"$f":"SUM(D260:S260)","v":1}]
[260,"Приволжский  ","МБОУ \"Средняя общеобразовательная школа №24 с углубленным изучением отдельных предметов\" Приволжского района г.Казани",{"$nulls":6},1,{"$nulls":9},1]
[261,"Приволжский  ","МБОУ \"Средняя общеобразовательная школа №42\" Приволжского района г.Казани",{"$nulls":6},1,{"$nulls":9},1]
[262,"Приволжский  ","МБОУ \"Средняя общеобразовательная школа №82 с углубленным изучением отдельных предметов им.Р.Г.Хасановой\" Приволжского района г.Казани",{"$nulls":6},2,{"$nulls":9},2]
[263,"Приволжский  ","МБОУ \"Татарско-русская средняя общеобразовательная школа №10 с углубленным изучением отдельных предметов\" Приволжского района г. Казани",{"$nulls":5},1,{"$nulls":10},1]
[264,"Приволжский  ","МБОУ «Русско-татарская средняя общеобразовательная школа №129» Приволжского района г.Казани",1,{"$nulls":15},1]
[265,"Приволжский  ","Общеобразовательная школа-интернат \"IT- лицей ФГАОУ ВО \"Казанский (Приволжский) федеральный университет\"",{"$nulls":4},3,{"$nulls":10},9,12]
[266,"Рыбно-Слободский","МБОУ «Масловская средняя общеобразовательная школа» Рыбно-Слободского муниципального района Республики Татарстан",{"$nulls":6},2,{"$nulls":9},2]
[267,"Рыбно-Слободский ","МБОУ \"Шумбутская средняя общеобразовательная школа\" Рыбно-Слободского муниципального района Республики Татарстан",{"$nulls":5},1,1,{"$nulls":9},2]
[268,"Рыбно-Слободский  ","МБОУ \"Биектауская средняя общеобразовательная школа\" Рыбно-Слободского муниципального района Республики Татарстан",null,null,2,{"$nulls":13},2]
[269,"Рыбно-Слободский  ","МБОУ \"Большеелгинская средняя общеобразовательная школа\" Рыбно-Слободского муниципального района Республики Татарстан",{"$nulls":15},1,1]
[270,"Рыбно-Слободский  ","МБОУ \"Кугарчинская средняя общеобразовательная школа\" Рыбно-Слободского муниципального района Республики Татарстан",null,null,1,1,{"$nulls":12},2]
[271,"Сабинский","МБОУ \"Большекибячинская средняя общеобразовательная школа Сабинского муниципального района Республики Татарстан\"",{"$nulls":3},2,null," ",null,2,1,{"$nulls":7},5]
[272,"Сабинский","МБОУ \"Сабабашская основная общеобразовательная школа Сабинского муниципального района Республики Татарстан\"",{"$nulls":3},2,null,null,1,{"$nulls":9},3]
[273,"Сабинский ","ГБОУ \"Икшурминская кадетская школа-интернат имени Байкиева К.С. Сабинского муниципального района Республики Татарстан\"",{"$nulls":4},1,null,1,{"$nulls":9},2]
[274,"Сабинский ","МБОУ \"Средняя общеобразовательная школа-интернат с углубленным изучением отдельных предметов для одаренных детей\" Сабинского муниципального района Республики Татарстан",{"$nulls":3}," ",5,5,null,null,1,{"$nulls":7},11]
[275,"Сабинский ","МБОУ \"Тимершикская средняя общеобразовательная школа Сабинского муниципального района Республики Татарстан\"",null,null,1,1,{"$nulls":3},1,1,{"$nulls":7},4]
[276,"Сабинский ","МБОУ \"Шеморданский лицей \"Рост\" Сабинского муниципального района Республики Татарстан\"",{"$nulls":4},1,4,{"$nulls":10},5]
[277,"Сабинский  ","МБОУ \"Верхнесиметская средняя общеобразовательная школа Сабинского муниципального района Республики Татарстан\"",null,null,1,{"$nulls":13},1]
[278,"Сабинский  ","МБОУ \"Гимназия п.г.т. Богатые Сабы Сабинского муниципального района Республики Татарстан\"",null,null,1,{"$nulls":3},1,1,{"$nulls":7},2,5]
[279,"Сабинский  ","МБОУ \"Изминская средняя общеобразовательная школа Сабинского муниципального района Республики Татарстан\"",null,null,3,{"$nulls":13},3]
[280,"Сабинский  ","МБОУ \"Кильдебякская средняя общеобразовательная школа Сабинского муниципального района Республики Татарстан\"",null,null,1,1,{"$nulls":4},1,{"$nulls":7},3]
[281,"Сабинский  ","МБОУ \"Лесхозская средняя общеобразовательная школа Сабинского муниципального района Республики Татарстан\"",{"$nulls":6},2,{"$nulls":9},2]
[282,"Сабинский  ","МБОУ \"Мичанская основная общеобразовательная школа Сабинского муниципального района Республики Татарстан\"",null,null,2,{"$nulls":13},2]
[283,"Сармановский ","МБОУ \"Джалильская средняя общеобразовательная школа №2\" Сармановского муниципального района Республики Татарстан",{"$nulls":5},1,1,{"$nulls":9},2]
[284,"Сармановский  ","МБОУ \"Джалильская средняя общеобразовательная школа №1 с углубленным изучением отдельных предметов\" Сармановского муниципального района Республики Татарстан",{"$nulls":4},1,{"$nulls":10},1,2]
[285,"Сармановский  ","МБОУ \"Сармановская гимназия\" Сармановского муниципального района Республики Татарстан",1,{"$nulls":8},2,{"$nulls":6},3]
[286,"Сармановский  ","МБОУ \"Сармановская средняя общеобразовательная школа\" Сармановского муниципального района Республики Татарстан",{"$nulls":9},1,{"$nulls":6},1]
[287,"Советский"," МБОУ \"Гимназия №20 имени Абдуллы Алиша\" Советского района г.Казани",null,1,null,1,{"$nulls":12},2]
[288,"Советский","МАОУ \"Лицей №121 имени Героя Советского Союза С.А.Ахтямова\" Советского района г.Казани",{"$nulls":4},4,7,{"$nulls":9},1,12]
[289,"Советский","МБОУ \" Средняя общеобразовательная школа №175\" Советского района г.Казани",{"$nulls":4},1,{"$nulls":11},1]
[290,"Советский","МБОУ \"Гимназия № 90\" Советского района г.Казани",{"$nulls":7},1,{"$nulls":8},1]
[291,"Советский","МБОУ \"Гимназия №175\" Советского района г.Казани",null,null,1,null,2,2,2,null,1,{"$nulls":6},1,9]
[292,"Советский","МБОУ \"Гимназия №93\" Советского района г.Казани",{"$nulls":15},4,4]
[293,"Советский","МБОУ \"Лицей №149 с татарским языком обучения\" Советского района г.Казани",null,2,3,1,{"$nulls":3},2,{"$nulls":8},8]
[294,"Советский","МБОУ \"Лицей №159\" Советского района г.Казани",{"$nulls":15},1,1]
[295,"Советский","МБОУ \"Многопрофильная полилингвальная гимназия №180\" Советского района г.Казани",1,{"$nulls":3},2,{"$nulls":11},3]
[296,"Советский","МБОУ \"Средняя общеобразовательная школа № 84 с углубленным изучением иностранных языков\" Советского района г. Казани",{"$nulls":5},1,{"$nulls":10},1]
[297,"Советский","МБОУ \"Средняя общеобразовательная школа №167 с углубленным изучением отдельных предметов\" Советского района г. Казани",{"$nulls":4},1,2,null,1,{"$nulls":8},4]
[298,"Советский","МБОУ \"Средняя общеобразовательная школа №169\" Советского района г.Казани",{"$nulls":4},2,{"$nulls":11},2]
[299,"Советский","МБОУ \"Средняя общеобразовательная школа №86 с углубленным изучением отдельных предметов\" Советского района г.Казани\"",{"$nulls":6},1,{"$nulls":9},1]
[300,"Советский","МБОУ «Средняя общеобразовательная школа  №171 с углубленным изучением отдельных предметов» Советского района г.Казани ",null,null,1,1,null,2,null,1,1,{"$nulls":7},6]
[301,"Советский","МБОУ «Средняя общеобразовательная школа с углубленным изучением отдельных предметов №184 им.М.И.Махмутова» Советского района г.Казани",{"$nulls":4},4,null,1,{"$nulls":9},5]
[302,"Советский","МБОУ «Татарская гимназия № 11» Советского района г. Казани",{"$nulls":7},1,{"$nulls":8},1]
[303,"Советский ","МБОУ \"Многопрофильная школа №181\" Советского района г.Казани",{"$nulls":4},1,{"$nulls":4},1,{"$nulls":6},2]
[304,"Советский ","МБОУ \"Средняя общеобразовательная школа № 144 с углубленным изучением отдельных предметов\" Советского района г.Казани\"",{"$nulls":9},1,{"$nulls":6},1]
[305,"Тетюшский","МБОУ \"Киртелинская средняя общеобразовательная школа\" Тетюшского муниципального района Республики Татарстан",{"$nulls":11},2,{"$nulls":4},2]
[306,"Тетюшский","МБОУ «Большетарханская средняя общеобразовательная школа» Тетюшского муниципального района Республики Татарстан",{"$nulls":4},1,{"$nulls":11},1]
[307,"Тетюшский ","МБОУ «Алабердинская средняя общеобразовательная школа» Тетюшского муниципального района Республики Татарстан",{"$nulls":3},1,{"$nulls":4},1,{"$nulls":7},2]
[308,"Тетюшский  ","МБОУ  \"Тетюшская средняя общеобразовательная школа №1 имени Героя Советского Союза Ханжина Павла Семеновича\" Тетюшского муниципального района Республики Татарстан",{"$nulls":9},1,{"$nulls":6},1]
[309,"Тетюшский  ","МБОУ \"Тетюшская средняя общеобразовательная школа №2\" Тетюшского муниципального района Республики Татарстан",{"$nulls":15},1,1]
[310,"Тетюшский  ","МБОУ «Тоншерминская средняя общеобразовательная школа» Тетюшского муниципального района Республики Татарстан",{"$nulls":14},1,null,1]
[311,"Тукаевский ","МБОУ \"Бурдинская средняя общеобразовательная школа\" Тукаевского муниципального района Республики Татарстан",{"$nulls":7},1,1,{"$nulls":7},2]
[312,"Тукаевский  ","МБОУ \"Кузкеевская средняя общеобразовательная школа\" Тукаевского муниципального района Республики Татарстан",null,null,1,{"$nulls":13},1]
[313,"Тукаевский  ","МБОУ \"Мелекесская средняя общеобразовательная школа с углубленным изучением отдельных предметов\" Тукаевского муниципального района Республики Татарстан",{"$nulls":15},1,1]
[314,"Тукаевский  ","МБОУ \"Новотроицкая средняя общеобразовательная школа\" Тукаевского муниципального района Республики Татарстан",{"$nulls":6},1,{"$nulls":9},1]
[315,"Тюлячинский ","МБОУ - Старозюринская средняя общеобразовательная школа Тюлячинского муниципального района Республики Татарстан",{"$nulls":8},1,{"$nulls":7},1]
[316,"Тюлячинский ","МБОУ - Тюлячинская средняя общеобразовательная школа Тюлячинского муниципального района Республики Татарстан",{"$nulls":4},4,1,{"$nulls":10},5]
[317,"Тюлячинский ","МБОУ Аланская средняя общеобразовательная школа Тюлячинского муниципального района Республики Татарстан",{"$nulls":4},1,{"$nulls":11},1]
[318,"Тюлячинский  ","МБОУ - Баландышская основная общеобразовательная школа Тюлячинского муниципального района Республики Татарстан",null,null,1,1,{"$nulls":12},2]
[319,"Тюлячинский  ","МБОУ - Большеметескинская средняя общеобразовательная школа им. Ф. Хусни Тюлячинского муниципального района Республики Татарстан",null,null,1,{"$nulls":13},1]
[320,"Тюлячинский  ","МБОУ - Большенырсинская средняя общеобразовательная школа Тюлячинского муниципального района Республики Татарстан",null,null,1,1,{"$nulls":12},2]
[321,"Тюлячинский  ","МБОУ - Верхнекибякозинская средняя общеобразовательная школа Тюлячинского муниципального района Республики Татарстан",{"$nulls":3},1,{"$nulls":12},1]
[322,"Тюлячинский  ","МБОУ- Большемешинская средняя общеобразовательная школа Тюлячинского муниципального района Республики Татарстан",null,null,1,{"$nulls":13},1]
[323,"Черемшанский","МБОУ «Черемшанский лицей» Черемшанского муниципального района Республики Татарстан",{"$nulls":7},2,3,{"$nulls":7},{"$f":"SUM(D324:S324)","v":5}]
[324,"Чистопольский ","МБОУ \"Гимназия №3\" Чистопольского муниципального района Республики Татарстан",null,1,{"$nulls":14},1]
[325,"Чистопольский ","МБОУ \"Татарско-Баганинская средняя общеобразовательная школа\" Чистопольского муниципального района Республики Татарстан",null,{"$f":"SUBTOTAL(9,E6:E325)","v":64},{"$nulls":6},1,{"$nulls":7},65]
[326,"Чистопольский ","МБОУ «Адельшинская средняя общеобразовательная школа» Чистопольского муниципального района Республики Татарстан",{"$nulls":7},2,{"$nulls":8},2]
[327,"Чистопольский  ","МБОУ \"Лицей №1\" Чистопольского муниципального района Республики Татарстан",{"$nulls":15},1,1]
[328,"Чистопольский  ","МБОУ \"Староромашкинская средняя ощеобразовательная школа\" Чистопольского муниципального района Республики Татарстан",null,null,1,{"$nulls":13},1]
[329,"Ютазинский ","МБОУ \"Байрякинская средняя общеобразовательная школа\" Ютазинского муниципального района Республики Татарстан",{"$nulls":7},1,1,{"$nulls":7},2]
[330,"Ютазинский ","МБОУ \"Уруссинская гимназия\" Ютазинского муниципального района Республики Татарстан",null,null,1,{"$nulls":4},1,1,{"$nulls":7},3]
[331,"Ютазинский  ","МБОУ \"Каразерикская средняя общеобразовательная школа им.Галима Вильданова\" Ютазинского муниципального района Республики Татарстан",{"$nulls":3},1,null,null," ",{"$nulls":9},1]
[332,"Ютазинский  ","МБОУ \"Мало-Уруссинская основная общеобразовательная школа\" Ютазинского муниципального района Республики Татарстан",{"$nulls":3},1,{"$nulls":12},1]
[333,"Ютазинский  ","МБОУ \"Уруссинская средняя общеобразовательная школа №3\" Ютазинского муниципального района Республики Татарстан",1,{"$nulls":3},1,{"$nulls":11},2]
[334,"Ютазинский  ","МБОУ \"Ютазинская средняя общеобразовательная школа\" Ютазинского муниципального района Республики Татарстан",{"$nulls":4},1,{"$nulls":10},1,2]
[102,"Вахитовский","МБОУ \"Средняя общеобразовательная школа №41\" Вахитовского района г. Казани",{"$nulls":6},1,{"$nulls":9},1]
[null,null,"Итого",{"$f":"SUM(D3:D336)","v":13},{"$f":"SUM(E3:E336)","v":128},110,78,153,98,91,92,88,30,7,2,4,9,23,76]